fUSD/lending_fUSD_20240117
["ID","MTS","AMOUNT","RATE_DAILY","PERIOD"]
[311899187,1705489967496,-1972.35,0.00026575,2]
[311899188,1705489967505,-819.9,0.00026575,2]
[311899189,1705489967514,-665.72,0.00026575,2]
[311899190,1705489967523,-1330.15,0.00026575,2]
[311899191,1705489967532,-500.0,0.00026575,2]
[311899192,1705489967541,-1961.2,0.00026575,2]
[311899193,1705489967550,-924.92,0.00026575,2]
[311899194,1705489967559,-1342.87,0.00026575,2]
[311899195,1705489967568,-516.6,0.00026575,2]
[311899196,1705489967578,-966.0,0.00026575,2]
[311899197,1705489967587,-872.31,0.00026575,2]
[311899198,1705489967596,-1214.22,0.00026575,2]
[311899199,1705489967605,-748.35,0.00026575,2]
[311899200,1705489967616,-500.0,0.00026575,2]
[311899201,1705489967625,-937.16,0.00026575,2]
[311899202,1705489967634,-799.25,0.00026575,2]
[311899203,1705489967643,-628.65,0.00026575,2]
[311899204,1705489967653,-500.0,0.00026575,2]
[311899205,1705489967662,-616.54,0.00026575,2]
[311899206,1705489967671,-500.0,0.00026575,2]
[311899207,1705489967681,-717.16,0.00026575,2]
[311899208,1705489967690,-500.0,0.00026575,2]
[311899209,1705489967699,-2202.67,0.00026575,2]
[311899210,1705489967709,-707.9,0.00026575,2]
[311899211,1705489967718,-994.43,0.00026575,2]
[311899212,1705489967727,-233.30969938,0.00026575,2]
[311899213,1705489967737,-1314.57,0.00026575,2]
[311899214,1705489967746,-700.88,0.00026575,2]
[311899215,1705489967755,-747.11,0.00026575,2]
[311899216,1705489967764,-1247.23,0.00026575,2]
[311899217,1705489967773,-649.04282791,0.00026575,2]
[311899218,1705489967782,-1107.65,0.00026575,2]
[311899219,1705489967792,-1113.86,0.00026575,2]
[311899220,1705489967801,-940.75,0.00026575,2]
[311899221,1705489967810,-1068.04,0.00026575,2]
[311899222,1705489967820,-591.69,0.00026575,2]
[311899223,1705489967830,-500.0,0.00026575,2]
[311899224,1705489967839,-514.52,0.00026575,2]
[311899225,1705489967848,-1801.96,0.00026575,2]
[311899226,1705489967858,-1119.07,0.00026575,2]
[311899227,1705489967868,-500.0,0.00026575,2]
[311899228,1705489967877,-2470.72,0.00026575,2]
[311899229,1705489967886,-500.0,0.00026575,2]
[311899230,1705489967896,-524.15,0.00026575,2]
[311899231,1705489967905,-904.79,0.00026575,2]
[311899232,1705489967914,-510.6,0.00026575,2]
[311899233,1705489967923,-576.31,0.00026575,2]
[311899234,1705489968265,-1190.34,0.00026575,2]
[311899235,1705489968276,-764.68,0.00026575,2]
[311899236,1705489968287,-1052.25,0.00026575,2]
[311899237,1705489968297,-636.43,0.00026575,2]
[311899238,1705489968306,-670.55,0.00026575,2]
[311899239,1705489968315,-1264.48,0.00026575,2]
[311899240,1705489968325,-814.85,0.00026575,2]
[311899241,1705489968335,-544.71,0.00026575,2]
[311899242,1705489968344,-500.0,0.00026575,2]
[311899243,1705489968354,-1206.43,0.00026575,2]
[311899244,1705489968366,-1198.01,0.00026575,2]
[311899245,1705489968376,-500.0,0.00026575,2]
[311899246,1705489968386,-1043.84,0.00026575,2]
[311899247,1705489968397,-1304.35,0.00026575,2]
[311899248,1705489968410,-1069.27,0.00026575,2]
[311899249,1705489968420,-1087.69,0.00026575,2]
[311899250,1705489968430,-962.26,0.00026575,2]
[311899251,1705489968440,-516.2,0.00026575,2]
[311899252,1705489968450,-1632.67,0.00026575,2]
[311899253,1705489968460,-500.0,0.00026575,2]
[311899254,1705489968470,-939.16,0.00026575,2]
[311899255,1705489968480,-918.4,0.00026575,2]
[311899256,1705489968490,-995.2,0.00026575,2]
[311899257,1705489968500,-500.0,0.00026575,2]
[311899258,1705489968509,-1008.57,0.00026575,2]
[311899259,1705489968520,-452.90053191,0.00026575,2]
[311899260,1705489968530,-500.0,0.00026575,2]
[311899261,1705489968539,-1060.73,0.00026575,2]
[311899262,1705489968548,-500.0,0.00026575,2]
[311899263,1705489968558,-1029.51,0.00026575,2]
[311899264,1705489968568,-636.13,0.00026575,2]
[311899265,1705489968577,-500.0,0.00026575,2]
[311899266,1705489968587,-702.02,0.00026575,2]
[311899267,1705489968596,-701.5,0.00026575,2]
[311899268,1705489968606,-594.97,0.00026575,2]
[311899269,1705489968617,-1038.32,0.00026575,2]
[311899270,1705489968627,-572.4,0.00026575,2]
[311899271,1705489968636,-3550.63,0.00026575,2]
[311899272,1705489968646,-982.96,0.00026575,2]
[311899273,1705489968656,-579.93,0.00026575,2]
[311899274,1705489968665,-500.0,0.00026575,2]
[311899275,1705489968674,-924.4,0.00026575,2]
[311899276,1705489968684,-2301.87,0.00026575,2]
[311899277,1705489968693,-578.12,0.00026575,2]
[311899278,1705489968703,-885.89,0.00026575,2]
[311899279,1705489968712,-694.35,0.00026575,2]
[311899280,1705489968722,-711.56,0.00026575,2]
[311899281,1705489968731,-1404.62,0.00026575,2]
[311899282,1705489968740,-500.0,0.00026575,2]
[311899283,1705489968750,-635.43,0.00026575,2]
[311899284,1705489968760,-1174.22,0.00026575,2]
[311899285,1705489968770,-1235.63,0.00026575,2]
[311899286,1705489968780,-701.7,0.00026575,2]
[311899287,1705489968789,-915.13,0.00026575,2]
[311899288,1705489968799,-500.0,0.00026575,2]
[311899289,1705489968809,-544.59,0.00026575,2]
[311899290,1705489968819,-2849.83,0.00026575,2]
[311899291,1705489968829,-1964.36,0.00026575,2]
[311899292,1705489968839,-500.0,0.00026575,2]
[311899293,1705489968850,-2896.5,0.00026575,2]
[311899294,1705489968861,-683.02,0.00026575,2]
[311899295,1705489968871,-1968.52,0.00026575,2]
[311899296,1705489968880,-1342.01,0.00026575,2]
[311899297,1705489968888,-675.72,0.00026575,2]
[311899298,1705489968898,-1029.41,0.00026575,2]
[311899299,1705489968907,-1548.58,0.00026575,2]
[311899300,1705489968916,-500.0,0.00026575,2]
[311899301,1705489968926,-655.65,0.00026575,2]
[311899302,1705489968935,-3528.9,0.00026575,2]
[311899303,1705489968944,-550.17,0.00026575,2]
[311899304,1705489968954,-530.48,0.00026575,2]
[311899305,1705489968963,-1274.2,0.00026575,2]
[311899306,1705489968972,-500.0,0.00026575,2]
[311899307,1705489968982,-710.03,0.00026575,2]
[311899308,1705489968991,-8305.92,0.00026575,2]
[311899309,1705489969001,-826.31,0.00026575,2]
[311899310,1705489969011,-500.0,0.00026575,2]
[311899311,1705489969020,-1478.93,0.00026575,2]
[311899312,1705489969030,-3468.63,0.00026575,2]
[311899313,1705489969039,-688.83,0.00026575,2]
[311899314,1705489969048,-598.69,0.00026575,2]
[311899315,1705489969058,-566.04,0.00026575,2]
[311899316,1705489969067,-13840.01,0.00026575,2]
[311899317,1705489969077,-611.72,0.00026575,2]
[311899318,1705489969086,-330.45,0.00026575,2]
[311899319,1705489969096,-678.15,0.00026575,2]
[311899320,1705489969105,-6007.21,0.00026575,2]
[311899321,1705489969115,-11260.59,0.00026575,2]
[311899322,1705489969124,-537.26,0.00026575,2]
[311899323,1705489969133,-576.52,0.00026575,2]
[311899324,1705489969143,-839.94,0.00026575,2]
[311899325,1705489969153,-785.85,0.00026575,2]
[311899326,1705489969162,-2426.8,0.00026575,2]
[311899327,1705489969172,-2267.53,0.00026575,2]
[311899328,1705489969182,-9043.74,0.00026575,2]
[311899329,1705489969192,-1153.46,0.00026575,2]
[311899330,1705489969202,-5019.46,0.00026575,2]
[311899331,1705489969211,-14230.88,0.00026575,2]
[311899332,1705489969220,-585.41,0.00026575,2]
[311899333,1705489969230,-1948.18,0.00026575,2]
[311899334,1705489969239,-500.0,0.00026575,2]
[311899335,1705489969249,-807.32,0.00026575,2]
[311899336,1705489969258,-328.86854577,0.00026575,2]
[311899337,1705489969268,-1841.76,0.00026575,2]
[311899338,1705489969277,-541.68,0.00026575,2]
[311899339,1705489969287,-648.92,0.00026575,2]
[311899340,1705489969296,-1313.51,0.00026575,2]
[311899341,1705489969305,-7863.6,0.00026575,2]
[311899342,1705489969315,-669.79,0.00026575,2]
[311899343,1705489969324,-1235.43,0.00026575,2]
[311899344,1705489969333,-1875.02,0.00026575,2]
[311899345,1705489969342,-886.27,0.00026575,2]
[311899346,1705489969352,-861.27,0.00026575,2]
[311899347,1705489969362,-863.63,0.00026575,2]
[311899348,1705489969374,-2235.54,0.00026575,2]
[311899349,1705489969383,-6074.67,0.00026575,2]
[311899350,1705489969392,-697.24,0.00026575,2]
[311899351,1705489969401,-524.02,0.00026575,2]
[311899352,1705489969411,-4516.86,0.00026575,2]
[311899353,1705489969420,-3841.76,0.00026575,2]
[311899354,1705489969429,-974.16,0.00026575,2]
[311899355,1705489969439,-4448.34,0.00026575,2]
[311899356,1705489969449,-4150.83,0.00026575,2]
[311899357,1705489969458,-500.0,0.00026575,2]
[311899358,1705489969468,-533.91,0.00026575,2]
[311899359,1705489969478,-566.02,0.00026575,2]
[311899360,1705489969487,-2935.1,0.00026575,2]
[311899361,1705489969497,-1309.04,0.00026575,2]
[311899362,1705489969506,-1965.44,0.00026575,2]
[311899363,1705489969515,-984.15,0.00026575,2]
[311899364,1705489969524,-992.22,0.00026575,2]
[311899365,1705489969533,-500.0,0.00026575,2]
[311899366,1705489969542,-32469.27,0.00026575,2]
[311899367,1705489969550,-573.08,0.00026575,2]
[311899368,1705489969560,-1696.71,0.00026575,2]
[311899369,1705489969570,-661.33,0.00026575,2]
[311899370,1705489969580,-615.65,0.00026575,2]
[311899371,1705489969589,-649.27,0.00026575,2]
[311899372,1705489969598,-2575.9,0.00026575,2]
[311899373,1705489969607,-1939.24,0.00026575,2]
[311899374,1705489969620,-3511.42,0.00026575,2]
[311899375,1705489969643,-468.12032205,0.00026575,2]
[311899376,1705489969654,-500.0,0.00026575,2]
[311899377,1705489969664,-1929.09,0.00026575,2]
[311899378,1705489969673,-500.0,0.00026575,2]
[311899379,1705489969682,-500.0,0.00026575,2]
[311899380,1705489969691,-1412.27,0.00026575,2]
[311899381,1705489969704,-2389.77,0.00026575,2]
[311899382,1705489969714,-2475.33,0.00026575,2]
[311899383,1705489969724,-1653.65,0.00026575,2]
[311899384,1705489969735,-4575.47,0.00026575,2]
[311899385,1705489969746,-14816.63,0.00026575,2]
[311899386,1705489969755,-661.55,0.00026575,2]
[311899387,1705489969764,-834.9,0.00026575,2]
[311899388,1705489969774,-1732.77,0.00026575,2]
[311899389,1705489969782,-8016.45,0.00026575,2]
[311899390,1705489969792,-1784.49,0.00026575,2]
[311899391,1705489969801,-558.85,0.00026575,2]
[311899392,1705489969811,-1352.99,0.00026575,2]
[311899393,1705489969821,-678.67,0.00026575,2]
[311899394,1705489969830,-1038.1,0.00026575,2]
[311899395,1705489969841,-9036.89,0.00026575,2]
[311899396,1705489969851,-815.12,0.00026575,2]
[311899397,1705489969862,-1774.09,0.00026575,2]
[311899398,1705489969872,-502.32,0.00026575,2]
[311899399,1705489969881,-2414.66,0.00026575,2]
[311899400,1705489969890,-5111.21,0.00026575,2]
[311899401,1705489969900,-1734.88,0.00026575,2]
[311899402,1705489969909,-855.29,0.00026575,2]
[311899403,1705489969919,-2245.54,0.00026575,2]
[311899404,1705489969929,-1744.59,0.00026575,2]
[311899405,1705489969939,-255.2156128,0.00026575,2]
[311899406,1705489969949,-1274.36,0.00026575,2]
[311899407,1705489969958,-706.05,0.00026575,2]
[311899408,1705489969968,-1510.08,0.00026575,2]
[311899409,1705489969977,-887.83,0.00026575,2]
[311899410,1705489969985,-1357.1,0.00026575,2]
[311899411,1705489969995,-1827.37,0.00026575,2]
[311899412,1705489970004,-1435.95,0.00026575,2]
[311899413,1705489970013,-584.24,0.00026575,2]
[311899414,1705489970023,-663.37,0.00026575,2]
[311899415,1705489970032,-779.77,0.00026575,2]
[311899416,1705489970041,-597.44,0.00026575,2]
[311899417,1705489970051,-3629.95,0.00026575,2]
[311899418,1705489970060,-1883.37,0.00026575,2]
[311899419,1705489970069,-916.35,0.00026575,2]
[311899420,1705489970078,-992.47,0.00026575,2]
[311899421,1705489970087,-1639.63,0.00026575,2]
[311899422,1705489970096,-1741.77,0.00026575,2]
[311899423,1705489970105,-3959.88,0.00026575,2]
[311899424,1705489970115,-820.93,0.00026575,2]
[311899425,1705489970124,-7153.04,0.00026575,2]
[311899426,1705489970133,-500.0,0.00026575,2]
[311899427,1705489970143,-782.9,0.00026575,2]
[311899428,1705489970153,-2360.61,0.00026575,2]
[311899429,1705489970163,-806.13,0.00026575,2]
[311899430,1705489970173,-500.0,0.00026575,2]
[311899431,1705489970183,-1392.64,0.00026575,2]
[311899432,1705489970193,-1083.43,0.00026575,2]
[311899433,1705489970202,-507.5,0.00026575,2]
[311899434,1705489970212,-778.97,0.00026575,2]
[311899435,1705489970222,-909.26,0.00026575,2]
[311899436,1705489970231,-979.46,0.00026575,2]
[311899437,1705489970241,-3419.57,0.00026575,2]
[311899438,1705489970251,-1861.48,0.00026575,2]
[311899439,1705489970261,-1210.04,0.00026575,2]
[311899440,1705489970270,-1060.67,0.00026575,2]
[311899441,1705489970280,-2842.76,0.00026575,2]
[311899442,1705489970290,-3566.82,0.00026575,5]
[311899443,1705489970299,-1195.39,0.00026575,2]
[311899444,1705489970309,-1906.25,0.00026575,2]
[311899445,1705489970319,-5873.11,0.00026575,2]
[311899446,1705489970329,-1159.83,0.00026575,2]
[311899447,1705489970338,-500.0,0.00026575,2]
[311899448,1705489970348,-1059.12,0.00026575,2]
[311899449,1705489970357,-651.56,0.00026575,2]
[311899450,1705489970368,-3914.25,0.00026575,2]
[311899451,1705489970378,-1418.66,0.00026575,2]
[311899452,1705489970387,-2140.36,0.00026575,2]
[311899453,1705489970400,-1392.42,0.00026575,2]
[311899454,1705489970410,-1713.01,0.00026575,2]
[311899455,1705489970419,-778.99,0.00026575,2]
[311899456,1705489970429,-2146.35,0.00026575,2]
[311899457,1705489970441,-500.0,0.00026575,2]
[311899458,1705489970450,-2303.4,0.00026575,2]
[311899459,1705489970460,-2140.57,0.00026575,2]
[311899460,1705489970469,-1461.06,0.00026575,2]
[311899461,1705489970478,-1784.9,0.00026575,2]
[311899462,1705489970487,-539.85,0.00026575,2]
[311899463,1705489970497,-1509.91,0.00026575,2]
[311899464,1705489970506,-672.09,0.00026575,2]
[311899465,1705489970515,-27781.74,0.00026575,2]
[311899466,1705489970525,-881.13,0.00026575,2]
[311899467,1705489970534,-2094.77,0.00026575,2]
[311899468,1705489970544,-534.01,0.00026575,2]
[311899469,1705489970554,-1969.05,0.00026575,2]
[311899470,1705489970563,-591.22,0.00026575,2]
[311899471,1705489970573,-4765.45,0.00026575,2]
[311899472,1705489970582,-1724.25,0.00026575,2]
[311899473,1705489970591,-2966.94,0.00026575,2]
[311899474,1705489970600,-1073.7,0.00026575,2]
[311899475,1705489970609,-856.24,0.00026575,2]
[311899476,1705489970619,-2716.01,0.00026575,2]
[311899477,1705489970734,-5190.51,0.00026575,2]
[311899478,1705489970743,-1107.84,0.00026575,2]
[311899479,1705489970753,-3130.06,0.00026575,2]
[311899480,1705489970761,-1373.46,0.00026575,2]
[311899481,1705489970770,-2577.68,0.00026575,2]
[311899482,1705489970779,-4976.8,0.00026575,2]
[311899483,1705489970788,-1821.72,0.00026575,2]
[311899484,1705489970797,-2636.23,0.00026575,2]
[311899485,1705489970806,-795.84,0.00026575,2]
[311899486,1705489970815,-4042.57,0.00026575,2]
[311899487,1705489970824,-964.47,0.00026575,2]
[311899488,1705489970833,-1662.15,0.00026575,2]
[311899489,1705489970842,-1181.55,0.00026575,2]
[311899490,1705489970851,-1443.1,0.00026575,2]
[311899491,1705489970860,-829.46,0.00026575,2]
[311899492,1705489970870,-500.0,0.00026575,2]
[311899493,1705489970879,-1912.07,0.00026575,2]
[311899494,1705489970888,-1683.87,0.00026575,2]
[311899495,1705489970896,-2975.27,0.00026575,2]
[311899496,1705489970905,-602.95,0.00026575,2]
[311899497,1705489970915,-1794.36,0.00026575,2]
[311899498,1705489970924,-3013.34,0.00026575,2]
[311899499,1705489970933,-1938.89,0.00026575,2]
[311899500,1705489970942,-649.62,0.00026575,2]
[311899501,1705489970951,-8143.8,0.00026575,2]
[311899502,1705489970960,-1207.37,0.00026575,2]
[311899503,1705489970969,-509.62,0.00026575,2]
[311899504,1705489970978,-1304.2,0.00026575,2]
[311899505,1705489970987,-1538.7,0.00026575,2]
[311899506,1705489970996,-924.58,0.00026575,2]
[311899507,1705489971005,-2403.64,0.00026575,2]
[311899508,1705489971014,-852.81,0.00026575,2]
[311899509,1705489971023,-1179.93,0.00026575,2]
[311899510,1705489971031,-1023.73,0.00026575,2]
[311899511,1705489971041,-357.26,0.00026575,2]
[311899512,1705489971052,-1937.17,0.00026575,2]
[311899513,1705489971062,-2592.46,0.00026575,2]
[311899514,1705489971071,-968.29,0.00026575,2]
[311899515,1705489971080,-3413.16,0.00026575,2]
[311899516,1705489971089,-500.0,0.00026575,2]
[311899517,1705489971098,-745.84,0.00026575,2]
[311899518,1705489971107,-1297.47,0.00026575,2]
[311899519,1705489971116,-815.9,0.00026575,2]
[311899520,1705489971125,-1190.11,0.00026575,2]
[311899521,1705489971134,-2908.69,0.00026575,2]
[311899522,1705489971144,-8716.14,0.00026575,2]
[311899523,1705489971153,-601.43,0.00026575,2]
[311899524,1705489971162,-3604.29,0.00026575,5]
[311899525,1705489971172,-2488.53,0.00026575,2]
[311899526,1705489971181,-17011.05,0.00026575,2]
[311899527,1705489971190,-3848.35,0.00026575,2]
[311899528,1705489971199,-1500.0,0.000266,2]
[311899529,1705489971209,-150.0,0.00026632,2]
[311899530,1705489971218,-302.02476776,0.00026639,2]
[311899531,1705489971227,-150.0,0.00026644,2]
[311899532,1705489971237,-209.69261755,0.00026654,2]
[311899533,1705489971246,-150.0,0.00026654,2]
[311899534,1705489971255,-293.9634344,0.00026681,2]
[311899535,1705489971264,-1500.0,0.00026683,2]
[311899536,1705489971274,-10000.0,0.00026694,2]
[311899537,1705489971283,-11918.3951305,0.000267,2]
[311899538,1705489971292,-1500.0,0.00026727,2]
[311899539,1705489971302,-150.0,0.00026729,2]
[311899540,1705489971312,-2684.12027064,0.0002673,2]
[311899541,1705489971321,-150.0,0.00026743,2]
[311899542,1705489971331,-10000.0,0.00026805,2]
[311899543,1705489971340,-1500.0,0.00026819,2]
[311899544,1705489971349,-395.16428209,0.00026824,2]
[311899545,1705489971358,-330.9523708,0.00026845,2]
[311899546,1705489971370,-58678.3573592,0.00026845,2]
[311899547,1705489971379,-1322.1437452,0.00026845,2]
[311899548,1705489971388,-330.96,0.00026847,2]
[311899549,1705489971401,-1504.83,0.00026849,2]
[311899550,1705489971410,-752.6,0.00026849,2]
[311899551,1705489971419,-1005.29,0.00026849,2]
[311899552,1705489971428,-581.65,0.00026849,2]
[311899553,1705489971438,-724.82,0.00026849,2]
[311899554,1705489971447,-600.28,0.00026849,2]
[311899555,1705489971456,-568.6,0.00026849,2]
[311899556,1705489971465,-514.64,0.00026849,2]
[311899557,1705489971476,-522.85,0.00026849,2]
[311899558,1705489971485,-561.37,0.00026849,2]
[311899559,1705489971494,-500.0,0.00026849,2]
[311899560,1705489971504,-569.46,0.00026849,2]
[311899561,1705489971513,-564.18,0.00026849,2]
[311899562,1705489971522,-1178.46,0.00026849,2]
[311899563,1705489971531,-573.27,0.00026849,2]
[311899564,1705489971540,-540.7,0.00026849,2]
[311899565,1705489971550,-507.73,0.00026849,2]
[311899566,1705489971560,-313.52,0.00026849,2]
[311899567,1705489971569,-554.53,0.00026849,2]
[311899568,1705489971578,-676.5,0.00026849,2]
[311899569,1705489971588,-569.53,0.00026849,2]
[311899570,1705489971597,-500.0,0.00026849,2]
[311899571,1705489971606,-773.49,0.00026849,2]
[311899572,1705489971616,-713.2,0.00026849,2]
[311899573,1705489971625,-924.46,0.00026849,2]
[311899574,1705489971634,-1087.8,0.00026849,2]
[311899575,1705489971643,-748.0,0.00026849,2]
[311899576,1705489971652,-590.98,0.00026849,2]
[311899577,1705489971662,-1140.29,0.00026849,2]
[311899578,1705489971671,-771.56,0.00026849,2]
[311899579,1705489971680,-500.0,0.00026849,2]
[311899580,1705489971689,-841.84,0.00026849,2]
[311899581,1705489971698,-1103.54,0.00026849,2]
[311899582,1705489971707,-771.02,0.00026849,2]
[311899583,1705489971717,-674.53,0.00026849,2]
[311899584,1705489971725,-500.0,0.00026849,2]
[311899585,1705489971734,-500.0,0.00026849,2]
[311899586,1705489971743,-1012.5,0.00026849,2]
[311899587,1705489971752,-708.29,0.00026849,2]
[311899588,1705489971761,-902.18,0.00026849,2]
[311899589,1705489971771,-642.34,0.00026849,2]
[311899590,1705489971780,-1577.38,0.00026849,2]
[311899591,1705489971790,-642.91,0.00026849,2]
[311899592,1705489971799,-671.72,0.00026849,2]
[311899593,1705489971808,-559.49,0.00026849,2]
[311899594,1705489971817,-444.72291246,0.00026849,2]
[311899595,1705489971826,-513.19,0.00026849,2]
[311899596,1705489971834,-1101.33,0.00026849,2]
[311899597,1705489971843,-560.17,0.00026849,2]
[311899598,1705489971852,-646.26,0.00026849,2]
[311899599,1705489971861,-540.47,0.00026849,2]
[311899600,1705489971870,-1309.23,0.00026849,2]
[311899601,1705489971879,-862.21,0.00026849,2]
[311899602,1705489971889,-592.26,0.00026849,2]
[311899603,1705489971898,-500.0,0.00026849,2]
[311899604,1705489971908,-548.37,0.00026849,2]
[311899605,1705489971916,-852.28,0.00026849,2]
[311899606,1705489971925,-751.97,0.00026849,2]
[311899607,1705489971934,-629.68,0.00026849,2]
[311899608,1705489971943,-1038.17,0.00026849,2]
[311899609,1705489971952,-865.86,0.00026849,2]
[311899610,1705489971962,-500.0,0.00026849,2]
[311899611,1705489971971,-809.41,0.00026849,2]
[311899612,1705489971980,-824.35,0.00026849,2]
[311899613,1705489971989,-500.0,0.00026849,2]
[311899614,1705489971998,-583.98,0.00026849,2]
[311899615,1705489972007,-858.82,0.00026849,2]
[311899616,1705489972015,-500.0,0.00026849,2]
[311899617,1705489972024,-924.3,0.00026849,2]
[311899618,1705489972032,-678.81,0.00026849,2]
[311899619,1705489972041,-683.06,0.00026849,2]
[311899620,1705489972049,-762.3,0.00026849,2]
[311899621,1705489972058,-869.48,0.00026849,2]
[311899622,1705489972067,-726.09,0.00026849,2]
[311899623,1705489972076,-500.0,0.00026849,2]
[311899624,1705489972084,-636.58,0.00026849,2]
[311899625,1705489972092,-888.84,0.00026849,2]
[311899626,1705489972101,-681.16,0.00026849,2]
[311899627,1705489972110,-1114.57,0.00026849,2]
[311899628,1705489972120,-986.98,0.00026849,2]
[311899629,1705489972128,-500.0,0.00026849,2]
[311899630,1705489972137,-560.75,0.00026849,2]
[311899631,1705489972146,-1015.76,0.00026849,2]
[311899632,1705489972156,-818.15,0.00026849,2]
[311899633,1705489972165,-924.47,0.00026849,2]
[311899634,1705489972174,-565.32,0.00026849,2]
[311899635,1705489972182,-778.03,0.00026849,2]
[311899636,1705489972191,-938.79,0.00026849,2]
[311899637,1705489972201,-685.24,0.00026849,2]
[311899638,1705489972210,-1126.57,0.00026849,2]
[311899639,1705489972219,-1529.03,0.00026849,2]
[311899640,1705489972233,-842.83,0.00026849,2]
[311899641,1705489972242,-677.6,0.00026849,2]
[311899642,1705489972251,-500.0,0.00026849,2]
[311899643,1705489972260,-824.64,0.00026849,2]
[311899644,1705489972270,-1113.11,0.00026849,2]
[311899645,1705489972279,-1539.23,0.00026849,2]
[311899646,1705489972289,-509.96,0.00026849,2]
[311899647,1705489972298,-802.8,0.00026849,2]
[311899648,1705489972308,-620.77,0.00026849,2]
[311899649,1705489972317,-500.0,0.00026849,2]
[311899650,1705489972327,-1060.88,0.00026849,2]
[311899651,1705489972336,-1111.84,0.00026849,2]
[311899652,1705489972346,-478.98645589,0.00026849,2]
[311899653,1705489972356,-554.16,0.00026849,2]
[311899654,1705489972367,-797.2,0.00026849,2]
[311899655,1705489972377,-814.02,0.00026849,2]
[311899656,1705489972387,-653.02,0.00026849,2]
[311899657,1705489972399,-728.98,0.00026849,2]
[311899658,1705489972410,-608.56,0.00026849,2]
[311899659,1705489972419,-500.0,0.00026849,2]
[311899660,1705489972428,-500.0,0.00026849,2]
[311899661,1705489972438,-1117.37,0.00026849,2]
[311899662,1705489972447,-786.84,0.00026849,2]
[311899663,1705489972457,-644.84,0.00026849,2]
[311899664,1705489972466,-865.83,0.00026849,2]
[311899665,1705489972476,-250.91447176,0.00026849,2]
[311899666,1705489972485,-985.83,0.00026849,2]
[311899667,1705489972494,-645.46,0.00026849,2]
[311899668,1705489972503,-500.0,0.00026849,2]
[311899669,1705489972511,-654.2,0.00026849,2]
[311899670,1705489972520,-671.37,0.00026849,2]
[311899671,1705489972529,-190.92935029,0.00026849,2]
[311899672,1705489972539,-500.0,0.00026849,2]
[311899673,1705489972552,-859.76,0.00026849,2]
[311899674,1705489972562,-679.83,0.00026849,2]
[311899675,1705489972571,-677.29,0.00026849,2]
[311899676,1705489972580,-812.38,0.00026849,2]
[311899677,1705489972589,-529.77,0.00026849,2]
[311899678,1705489972598,-905.75,0.00026849,2]
[311899679,1705489972607,-597.1,0.00026849,2]
[311899680,1705489972616,-587.74402116,0.00026849,2]
[311899681,1705489972625,-500.0,0.00026849,2]
[311899682,1705489972634,-976.89,0.00026849,2]
[311899683,1705489972645,-921.81,0.00026849,2]
[311899684,1705489972655,-801.58,0.00026849,2]
[311899685,1705489972664,-1318.24,0.00026849,2]
[311899686,1705489972673,-565.85,0.00026849,2]